[Event "GrandPrix_30.05"]
[Site "Chess.com"]
[Date "2020.05.30"]
[Round "3"]
[White "ulkaf961"]
[Black "Lion_DL"]
[Result "1/2-1/2"]
[WhiteElo "2006"]
[BlackElo "2135"]
[TimeControl "600+2"]
[EndTime "9:21:22 PDT"]
[Termination "Game drawn by repetition"]

1. e4 {[%clk 0:10:01.9]} 1... Nc6 {[%clk 0:10:00]} 2. Nf3 {[%clk 0:09:58.3]}
2... d6 {[%clk 0:10:00.8]} 3. d4 {[%clk 0:09:57.5]} 3... Nf6 {[%clk 0:10:01]} 4.
Nc3 {[%clk 0:09:55.8]} 4... Bg4 {[%clk 0:10:01]} 5. Be3 {[%clk 0:09:52.8]} 5...
e6 {[%clk 0:09:58.9]} 6. Bb5 {[%clk 0:09:36.5]} 6... a6 {[%clk 0:09:56.3]} 7.
Be2 {[%clk 0:09:31.2]} 7... d5 {[%clk 0:09:35.2]} 8. exd5 {[%clk 0:09:02.9]}
8... exd5 {[%clk 0:09:19.5]} 9. Ne5 {[%clk 0:09:02.7]} 9... Bxe2 {[%clk
0:09:09.9]} 10. Qxe2 {[%clk 0:08:57.8]} 10... Be7 {[%clk 0:08:55.1]} 11. O-O
{[%clk 0:08:28.3]} 11... O-O {[%clk 0:08:50.5]} 12. f4 {[%clk 0:08:18.5]} 12...
Bb4 {[%clk 0:08:46.1]} 13. Nd1 {[%clk 0:07:32.3]} 13... Ne4 {[%clk 0:08:24.2]}
14. c3 {[%clk 0:07:24.7]} 14... Bd6 {[%clk 0:08:17.8]} 15. Rf3 {[%clk 0:07:25]}
15... Ne7 {[%clk 0:07:42.4]} 16. Rh3 {[%clk 0:07:19]} 16... g6 {[%clk
0:06:40.4]} 17. Nf2 {[%clk 0:05:39.8]} 17... Nxf2 {[%clk 0:06:02.2]} 18. Qxf2
{[%clk 0:05:39.4]} 18... Nf5 {[%clk 0:05:57.1]} 19. Bd2 {[%clk 0:05:40.1]} 19...
f6 {[%clk 0:05:51.4]} 20. Nd3 {[%clk 0:04:54.6]} 20... h5 {[%clk 0:03:51.1]} 21.
Qf3 {[%clk 0:04:40.9]} 21... c6 {[%clk 0:03:10.9]} 22. g4 {[%clk 0:04:40.9]}
22... hxg4 {[%clk 0:02:21.5]} 23. Qxg4 {[%clk 0:04:41.5]} 23... Rf7 {[%clk
0:02:23.1]} 24. Kh1 {[%clk 0:04:05]} 24... Rg7 {[%clk 0:02:24.1]} 25. Rg1 {[%clk
0:03:05.1]} 25... Qd7 {[%clk 0:02:15.5]} 26. Nf2 {[%clk 0:02:27]} 26... Re8
{[%clk 0:02:04.8]} 27. Qf3 {[%clk 0:02:27.9]} 27... Qe6 {[%clk 0:01:54.4]} 28.
Ng4 {[%clk 0:02:28.6]} 28... Kf7 {[%clk 0:01:49.4]} 29. Re1 {[%clk 0:01:47.4]}
29... Qd7 {[%clk 0:01:48.7]} 30. Rg1 {[%clk 0:00:50.8]} 30... Qe6 {[%clk
0:01:49.6]} 31. Re1 {[%clk 0:00:51.3]} 31... Qd7 {[%clk 0:01:50.7]} 32. Rg1
{[%clk 0:00:52.4]} 32... Qe6 {[%clk 0:01:28.5]} 1/2-1/2

[Event "GrandPrix_30.05"]
[Site "Chess.com"]
[Date "2020.05.30"]
[Round "3"]
[White "hubertsmazak"]
[Black "guylevin1"]
[Result "1-0"]
[WhiteElo "2257"]
[BlackElo "2114"]
[TimeControl "600+2"]
[EndTime "9:21:25 PDT"]
[Termination "hubertsmazak won on time"]

1. d4 {[%clk 0:10:01.9]} 1... Nf6 {[%clk 0:10:00.5]} 2. c4 {[%clk 0:10:02.6]}
2... g6 {[%clk 0:10:01.1]} 3. Nc3 {[%clk 0:10:03.1]} 3... d5 {[%clk 0:10:02.2]}
4. cxd5 {[%clk 0:10:04.1]} 4... Nxd5 {[%clk 0:10:04.1]} 5. e4 {[%clk 0:10:05.6]}
5... Nxc3 {[%clk 0:10:05]} 6. bxc3 {[%clk 0:10:07.5]} 6... Bg7 {[%clk
0:10:06.3]} 7. Bc4 {[%clk 0:10:09.1]} 7... c5 {[%clk 0:10:06.6]} 8. Ne2 {[%clk
0:10:10.4]} 8... Nc6 {[%clk 0:10:03.3]} 9. Be3 {[%clk 0:10:10.6]} 9... O-O
{[%clk 0:10:03.8]} 10. O-O {[%clk 0:10:10.9]} 10... Qc7 {[%clk 0:10:02]} 11. Rc1
{[%clk 0:09:58.3]} 11... b6 {[%clk 0:10:02.5]} 12. h4 {[%clk 0:09:58.6]} 12...
h5 {[%clk 0:09:55]} 13. Qd2 {[%clk 0:09:34.4]} 13... Na5 {[%clk 0:09:50.5]} 14.
Bd3 {[%clk 0:09:33.2]} 14... Rd8 {[%clk 0:09:42.4]} 15. Bg5 {[%clk 0:09:04.9]}
15... Nc6 {[%clk 0:07:56.7]} 16. Nf4 {[%clk 0:08:57.1]} 16... Bb7 {[%clk
0:07:10.8]} 17. Nd5 {[%clk 0:08:29.8]} 17... Qd7 {[%clk 0:07:03]} 18. Bb5 {[%clk
0:08:08.5]} 18... f6 {[%clk 0:06:39.7]} 19. Be3 {[%clk 0:07:57.5]} 19... e6
{[%clk 0:06:10.5]} 20. Nf4 {[%clk 0:07:54.5]} 20... Kh7 {[%clk 0:06:10.7]} 21.
d5 {[%clk 0:07:41.8]} 21... exd5 {[%clk 0:06:06.6]} 22. exd5 {[%clk 0:07:41.7]}
22... Qf7 {[%clk 0:06:07.5]} 23. dxc6 {[%clk 0:07:20]} 23... Rxd2 {[%clk
0:06:06.9]} 24. cxb7 {[%clk 0:07:21.2]} 24... Qxb7 {[%clk 0:06:08]} 25. Bxd2
{[%clk 0:07:20.7]} 25... a6 {[%clk 0:06:00.9]} 26. Bc4 {[%clk 0:07:08.1]} 26...
Rd8 {[%clk 0:05:49.3]} 27. Be3 {[%clk 0:07:09.1]} 27... b5 {[%clk 0:05:37.3]}
28. Be2 {[%clk 0:07:04.2]} 28... Re8 {[%clk 0:04:45.9]} 29. Bf3 {[%clk
0:06:57.3]} 29... Qc8 {[%clk 0:04:43.2]} 30. c4 {[%clk 0:06:48.7]} 30... Bf8
{[%clk 0:04:15.9]} 31. Rfd1 {[%clk 0:06:35]} 31... b4 {[%clk 0:04:15.9]} 32. Rd5
{[%clk 0:06:31.3]} 32... Re5 {[%clk 0:04:09.9]} 33. Rcd1 {[%clk 0:06:22.3]}
33... Rxd5 {[%clk 0:04:10.2]} 34. Rxd5 {[%clk 0:06:18.5]} 34... a5 {[%clk
0:04:08.6]} 35. Bd1 {[%clk 0:06:00]} 35... Qc6 {[%clk 0:04:03.2]} 36. Rd8 {[%clk
0:05:47.5]} 36... Be7 {[%clk 0:02:53.1]} 37. Rb8 {[%clk 0:05:28.2]} 37... a4
{[%clk 0:02:44.7]} 38. Bf3 {[%clk 0:05:27.2]} 38... Qd6 {[%clk 0:02:11.2]} 39.
Rb7 {[%clk 0:05:26.5]} 39... Kg8 {[%clk 0:00:50.4]} 40. Nxg6 {[%clk 0:05:21.1]}
40... b3 {[%clk 0:00:47.2]} 41. axb3 {[%clk 0:05:18.3]} 41... a3 {[%clk
0:00:43.5]} 42. Nxe7+ {[%clk 0:05:11.5]} 42... Kf8 {[%clk 0:00:42.2]} 43. Nf5
{[%clk 0:03:42.6]} 43... a2 {[%clk 0:00:31.7]} 44. Nxd6 {[%clk 0:03:36.7]} 44...
a1=Q+ {[%clk 0:00:32.1]} 45. Kh2 {[%clk 0:03:38]} 45... Qe5+ {[%clk 0:00:33.2]}
46. g3 {[%clk 0:03:39.4]} 46... Qxd6 {[%clk 0:00:34.4]} 47. Rb5 {[%clk
0:03:40.2]} 47... Qd3 {[%clk 0:00:32.9]} 48. Bxc5+ {[%clk 0:03:39.5]} 48... Kg7
{[%clk 0:00:33.2]} 49. Kg2 {[%clk 0:03:40.5]} 49... f5 {[%clk 0:00:31.3]} 50.
Be3 {[%clk 0:03:40.9]} 50... f4 {[%clk 0:00:32.3]} 51. Bxf4 {[%clk 0:03:39.6]}
1-0

[Event "GrandPrix_30.05"]
[Site "Chess.com"]
[Date "2020.05.30"]
[Round "3"]
[White "TheNextLevelFan"]
[Black "tacticthunder"]
[Result "1-0"]
[WhiteElo "2532"]
[BlackElo "2216"]
[TimeControl "600+2"]
[EndTime "9:21:33 PDT"]
[Termination "TheNextLevelFan won by resignation"]

1. d4 {[%clk 0:10:01.9]} 1... Nf6 {[%clk 0:09:48.2]} 2. c4 {[%clk 0:10:02.2]}
2... e6 {[%clk 0:09:47.7]} 3. Nf3 {[%clk 0:10:02.7]} 3... c5 {[%clk 0:09:42.7]}
4. Nc3 {[%clk 0:10:00.1]} 4... cxd4 {[%clk 0:09:38.4]} 5. Nxd4 {[%clk 0:10:02]}
5... Nc6 {[%clk 0:09:32.9]} 6. g3 {[%clk 0:09:43.6]} 6... Bc5 {[%clk 0:09:13.2]}
7. Nb3 {[%clk 0:09:38.9]} 7... Be7 {[%clk 0:08:44.6]} 8. Bg2 {[%clk 0:09:38.4]}
8... O-O {[%clk 0:08:45]} 9. O-O {[%clk 0:09:30.4]} 9... d6 {[%clk 0:08:31.9]}
10. Bf4 {[%clk 0:09:15.5]} 10... a6 {[%clk 0:08:30.6]} 11. Qd2 {[%clk
0:09:08.7]} 11... h6 {[%clk 0:06:50]} 12. Rfd1 {[%clk 0:07:48]} 12... e5 {[%clk
0:06:41.6]} 13. Be3 {[%clk 0:07:49.5]} 13... Be6 {[%clk 0:06:32.8]} 14. Nd5
{[%clk 0:07:31.4]} 14... Rc8 {[%clk 0:06:13.8]} 15. Bb6 {[%clk 0:07:21.7]} 15...
Qd7 {[%clk 0:06:00.4]} 16. Rac1 {[%clk 0:06:26.4]} 16... Bxd5 {[%clk 0:05:34.2]}
17. cxd5 {[%clk 0:06:01.7]} 17... Nb8 {[%clk 0:05:24.1]} 18. Qb4 {[%clk
0:05:56]} 18... Rxc1 {[%clk 0:05:16.2]} 19. Rxc1 {[%clk 0:05:56.5]} 19... Rc8
{[%clk 0:05:17.5]} 20. Rc4 {[%clk 0:05:45]} 20... Qe8 {[%clk 0:04:07.8]} 21. Na5
{[%clk 0:05:33.4]} 21... Nbd7 {[%clk 0:02:52.5]} 22. Be3 {[%clk 0:05:15.4]}
22... b5 {[%clk 0:02:34.7]} 23. Rc6 {[%clk 0:04:57.5]} 23... Nb8 {[%clk
0:01:51.8]} 24. Rxc8 {[%clk 0:04:28.1]} 24... Qxc8 {[%clk 0:01:53.7]} 25. Nc6
{[%clk 0:04:29.7]} 25... Kf8 {[%clk 0:01:10.6]} 26. a4 {[%clk 0:03:34]} 26...
bxa4 {[%clk 0:00:34.8]} 27. Qxb8 {[%clk 0:03:30]} 27... Qxb8 {[%clk 0:00:23.9]}
28. Nxb8 {[%clk 0:03:31.9]} 28... e4 {[%clk 0:00:16.3]} 29. Nxa6 {[%clk
0:03:24]} 29... Nxd5 {[%clk 0:00:14]} 30. Bd4 {[%clk 0:03:18.7]} 30... f5 {[%clk
0:00:14]} 31. f3 {[%clk 0:03:19.5]} 31... Bf6 {[%clk 0:00:03.9]} 32. Bxf6 {[%clk
0:03:18.8]} 32... Nxf6 {[%clk 0:00:05.8]} 33. fxe4 {[%clk 0:03:17.9]} 33... fxe4
{[%clk 0:00:07.7]} 34. Kf2 {[%clk 0:03:07.2]} 34... Ng4+ {[%clk 0:00:05.8]} 35.
Ke1 {[%clk 0:03:06.9]} 35... d5 {[%clk 0:00:07.4]} 36. Bh3 {[%clk 0:03:00.7]}
36... Ne5 {[%clk 0:00:04.5]} 37. Nc5 {[%clk 0:03:00.2]} 37... d4 {[%clk
0:00:03.5]} 38. Nd7+ {[%clk 0:02:58.5]} 38... Nxd7 {[%clk 0:00:02.3]} 39. Bxd7
{[%clk 0:03:00.4]} 39... Ke7 {[%clk 0:00:03]} 40. Bxa4 {[%clk 0:03:00.7]} 40...
Kd6 {[%clk 0:00:04.9]} 41. e3 {[%clk 0:02:58.5]} 41... d3 {[%clk 0:00:03.7]} 42.
Kd2 {[%clk 0:02:59]} 42... Ke5 {[%clk 0:00:04.3]} 43. Bc6 {[%clk 0:02:59.1]} 1-0

[Event "GrandPrix_30.05"]
[Site "Chess.com"]
[Date "2020.05.30"]
[Round "3"]
[White "PotapovaM"]
[Black "DanielDardha2005"]
[Result "1/2-1/2"]
[WhiteElo "2185"]
[BlackElo "2384"]
[TimeControl "600+2"]
[EndTime "9:21:40 PDT"]
[Termination "Game drawn by agreement"]

1. d4 {[%clk 0:10:01.9]} 1... Nf6 {[%clk 0:10:00.4]} 2. c4 {[%clk 0:10:02.6]}
2... c5 {[%clk 0:10:01.6]} 3. d5 {[%clk 0:10:03.5]} 3... e6 {[%clk 0:10:03]} 4.
Nc3 {[%clk 0:09:59.2]} 4... d6 {[%clk 0:10:03.1]} 5. Nf3 {[%clk 0:09:30.7]} 5...
g6 {[%clk 0:10:02.5]} 6. g3 {[%clk 0:09:29.1]} 6... Bg7 {[%clk 0:10:02.9]} 7.
Bg2 {[%clk 0:09:30.3]} 7... exd5 {[%clk 0:10:03.7]} 8. cxd5 {[%clk 0:09:32.2]}
8... O-O {[%clk 0:10:04.7]} 9. O-O {[%clk 0:09:33.6]} 9... Re8 {[%clk
0:10:05.2]} 10. Nd2 {[%clk 0:09:11]} 10... Nbd7 {[%clk 0:09:45.8]} 11. h3 {[%clk
0:09:08.8]} 11... a6 {[%clk 0:09:33.3]} 12. a4 {[%clk 0:09:09.6]} 12... Nh5
{[%clk 0:09:30.4]} 13. Nc4 {[%clk 0:09:07.6]} 13... Ne5 {[%clk 0:09:30.4]} 14.
Na3 {[%clk 0:09:08.2]} 14... Rb8 {[%clk 0:09:09.6]} 15. e4 {[%clk 0:08:52.6]}
15... Bd7 {[%clk 0:09:01.8]} 16. a5 {[%clk 0:08:52.9]} 16... Qxa5 {[%clk
0:08:45.8]} 17. g4 {[%clk 0:08:33.9]} 17... Nf6 {[%clk 0:08:41.8]} 18. g5 {[%clk
0:07:17.3]} 18... Nh5 {[%clk 0:08:28.7]} 19. Be3 {[%clk 0:06:54.1]} 19... Qb4
{[%clk 0:07:55.1]} 20. Qe2 {[%clk 0:06:46.1]} 20... b5 {[%clk 0:07:33.2]} 21.
Kh2 {[%clk 0:06:34.6]} 21... f5 {[%clk 0:07:03.6]} 22. gxf6 {[%clk 0:05:03.5]}
22... Nxf6 {[%clk 0:07:02.9]} 23. Na2 {[%clk 0:04:15.9]} 23... Qb3 {[%clk
0:06:02.9]} 24. Nc1 {[%clk 0:04:08.7]} 24... Qa4 {[%clk 0:05:56.2]} 25. f4
{[%clk 0:03:51.6]} 25... Nc4 {[%clk 0:05:20.1]} 26. b3 {[%clk 0:03:47]} 26...
Qxa3 {[%clk 0:04:17.8]} 27. Rxa3 {[%clk 0:03:41.7]} 27... Nxa3 {[%clk
0:04:19.1]} 28. Qa2 {[%clk 0:02:35]} 28... b4 {[%clk 0:04:18]} 29. e5 {[%clk
0:02:36]} 29... dxe5 {[%clk 0:04:08.3]} 30. fxe5 {[%clk 0:02:37.9]} 30... Rxe5
{[%clk 0:04:07.8]} 31. Bf4 {[%clk 0:02:38.4]} 31... Nh5 {[%clk 0:04:08.9]} 32.
Bxe5 {[%clk 0:02:30]} 32... Bxe5+ {[%clk 0:04:10.4]} 33. Kg1 {[%clk 0:02:31.6]}
33... Bd4+ {[%clk 0:04:04.4]} 34. Kh2 {[%clk 0:02:31.3]} 34... Be5+ {[%clk
0:03:42.6]} 35. Kg1 {[%clk 0:02:31.7]} 35... Re8 {[%clk 0:03:19.5]} 36. Nd3
{[%clk 0:01:56.5]} 36... Bd4+ {[%clk 0:02:54.1]} 37. Kh2 {[%clk 0:01:57.3]}
37... Bb5 {[%clk 0:02:38.6]} 38. Qd2 {[%clk 0:01:41.1]} 38... Bc3 {[%clk
0:01:45.2]} 39. Qf2 {[%clk 0:01:26.8]} 39... Nf6 {[%clk 0:01:35.9]} 1/2-1/2

[Event "GrandPrix_30.05"]
[Site "Chess.com"]
[Date "2020.05.30"]
[Round "3"]
[White "BairaKovanova"]
[Black "KruHor"]
[Result "0-1"]
[WhiteElo "2141"]
[BlackElo "2429"]
[TimeControl "600+2"]
[EndTime "9:21:58 PDT"]
[Termination "KruHor won by resignation"]

1. e4 {[%clk 0:10:01.9]} 1... c5 {[%clk 0:08:49.2]} 2. Nc3 {[%clk 0:09:59.2]}
2... e6 {[%clk 0:08:48.1]} 3. d3 {[%clk 0:09:55.7]} 3... Nc6 {[%clk 0:08:42.5]}
4. g3 {[%clk 0:09:55.7]} 4... Nf6 {[%clk 0:08:36.3]} 5. Bg2 {[%clk 0:09:55.9]}
5... Be7 {[%clk 0:08:36.8]} 6. Nf3 {[%clk 0:09:55.6]} 6... d5 {[%clk 0:08:32.5]}
7. Qe2 {[%clk 0:09:11.7]} 7... Nd4 {[%clk 0:08:18.7]} 8. Qd1 {[%clk 0:08:37.3]}
8... Nxf3+ {[%clk 0:08:16.3]} 9. Qxf3 {[%clk 0:08:30.7]} 9... d4 {[%clk
0:08:15.9]} 10. Nb1 {[%clk 0:07:59.7]} 10... e5 {[%clk 0:08:16]} 11. h3 {[%clk
0:07:56.5]} 11... h5 {[%clk 0:08:13]} 12. Nd2 {[%clk 0:07:51.7]} 12... Qc7
{[%clk 0:08:01.8]} 13. Nc4 {[%clk 0:07:35.5]} 13... h4 {[%clk 0:07:37.9]} 14. g4
{[%clk 0:07:29.3]} 14... Nh7 {[%clk 0:07:36.7]} 15. Qe2 {[%clk 0:06:51.6]} 15...
Bg5 {[%clk 0:07:31.6]} 16. Bd2 {[%clk 0:06:06.5]} 16... Be6 {[%clk 0:07:28.1]}
17. Rf1 {[%clk 0:05:13.7]} 17... Bxd2+ {[%clk 0:07:19.4]} 18. Nxd2 {[%clk
0:05:05.1]} 18... Nf8 {[%clk 0:07:17.1]} 19. f4 {[%clk 0:04:36.7]} 19... exf4
{[%clk 0:07:16.7]} 20. e5 {[%clk 0:04:37.6]} 20... Ng6 {[%clk 0:07:15.3]} 21.
Qe4 {[%clk 0:03:09]} 21... O-O-O {[%clk 0:06:59.8]} 22. O-O-O {[%clk 0:03:00.9]}
22... Rhe8 {[%clk 0:06:51.3]} 23. Rxf4 {[%clk 0:01:03.9]} 23... Nxf4 {[%clk
0:06:34.3]} 24. Qxf4 {[%clk 0:01:04.9]} 24... f6 {[%clk 0:05:58.3]} 25. Re1
{[%clk 0:00:50.1]} 25... fxe5 {[%clk 0:05:22.1]} 26. Rxe5 {[%clk 0:00:49.9]}
26... Bd7 {[%clk 0:05:04.1]} 27. Nc4 {[%clk 0:00:23.1]} 27... Rxe5 {[%clk
0:05:03.7]} 28. Qxe5 {[%clk 0:00:22.7]} 28... Qxe5 {[%clk 0:04:58.1]} 29. Nxe5
{[%clk 0:00:23.5]} 29... Be6 {[%clk 0:04:09]} 30. Ng6 {[%clk 0:00:20.2]} 30...
Kc7 {[%clk 0:04:04.9]} 31. Nxh4 {[%clk 0:00:19.4]} 31... Rf8 {[%clk 0:04:04.5]}
32. Be4 {[%clk 0:00:15]} 32... Rf1+ {[%clk 0:03:53.7]} 33. Kd2 {[%clk
0:00:15.8]} 33... Rf2+ {[%clk 0:03:54.7]} 34. Kd1 {[%clk 0:00:17.1]} 34... b5
{[%clk 0:03:44.5]} 35. Ng6 {[%clk 0:00:15]} 35... Kd6 {[%clk 0:03:39.5]} 36. b3
{[%clk 0:00:14.7]} 36... a5 {[%clk 0:03:17.3]} 37. Kc1 {[%clk 0:00:11.5]} 37...
Bf7 {[%clk 0:03:05]} 38. Nh4 {[%clk 0:00:10.9]} 38... Ke5 {[%clk 0:03:03.2]} 39.
Nf5 {[%clk 0:00:11.3]} 39... g5 {[%clk 0:02:56.4]} 40. Ne7 {[%clk 0:00:10.1]}
40... Be8 {[%clk 0:02:44.8]} 41. Kb2 {[%clk 0:00:07.7]} 41... c4 {[%clk
0:02:42.5]} 42. bxc4 {[%clk 0:00:08]} 42... bxc4 {[%clk 0:02:42.9]} 43. Nf5
{[%clk 0:00:08.4]} 43... c3+ {[%clk 0:02:41.6]} 44. Kb3 {[%clk 0:00:08.4]} 44...
Bf7+ {[%clk 0:02:31.2]} 0-1

[Event "GrandPrix_30.05"]
[Site "Chess.com"]
[Date "2020.05.30"]
[Round "3"]
[White "Vuk2000"]
[Black "PresidenteMNE"]
[Result "0-1"]
[WhiteElo "2216"]
[BlackElo "2171"]
[TimeControl "600+2"]
[EndTime "9:21:59 PDT"]
[Termination "PresidenteMNE won by checkmate"]

1. d4 {[%clk 0:10:01.9]} 1... c5 {[%clk 0:10:00.4]} 2. d5 {[%clk 0:10:02.1]}
2... e6 {[%clk 0:10:01.9]} 3. c4 {[%clk 0:10:02.3]} 3... Bd6 {[%clk 0:10:03]} 4.
Nc3 {[%clk 0:09:59]} 4... Be5 {[%clk 0:10:03.6]} 5. Nf3 {[%clk 0:09:59.2]} 5...
Bxc3+ {[%clk 0:10:04.3]} 6. bxc3 {[%clk 0:09:59.3]} 6... d6 {[%clk 0:10:05.8]}
7. g3 {[%clk 0:09:34.1]} 7... e5 {[%clk 0:10:06.7]} 8. Bg2 {[%clk 0:09:34.7]}
8... f5 {[%clk 0:10:00.5]} 9. O-O {[%clk 0:09:31.5]} 9... Nf6 {[%clk 0:10:01.3]}
10. Bg5 {[%clk 0:08:25.8]} 10... h6 {[%clk 0:09:58.6]} 11. Bc1 {[%clk
0:07:56.6]} 11... O-O {[%clk 0:09:58]} 12. Rb1 {[%clk 0:07:57.1]} 12... Ne4
{[%clk 0:09:48]} 13. Qc2 {[%clk 0:07:56.2]} 13... Nd7 {[%clk 0:09:47]} 14. Ne1
{[%clk 0:07:51.8]} 14... Qa5 {[%clk 0:09:29.7]} 15. Bxe4 {[%clk 0:07:24.5]}
15... fxe4 {[%clk 0:09:29.5]} 16. Qxe4 {[%clk 0:07:26.4]} 16... Nb6 {[%clk
0:09:12.9]} 17. Qc2 {[%clk 0:06:38.8]} 17... Nxc4 {[%clk 0:08:56.6]} 18. f3
{[%clk 0:06:33.9]} 18... e4 {[%clk 0:08:19.2]} 19. fxe4 {[%clk 0:06:21.9]} 19...
Rxf1+ {[%clk 0:08:02.5]} 20. Kxf1 {[%clk 0:06:23.8]} 20... b5 {[%clk 0:07:47.9]}
21. Nd3 {[%clk 0:05:59.2]} 21... Bd7 {[%clk 0:07:03.9]} 22. Kg1 {[%clk
0:05:44.3]} 22... Rf8 {[%clk 0:07:02.1]} 23. Ra1 {[%clk 0:05:37.6]} 23... Qd8
{[%clk 0:06:40.1]} 24. Bd2 {[%clk 0:03:49.6]} 24... Qf6 {[%clk 0:06:38.7]} 25.
Re1 {[%clk 0:03:25.4]} 25... Bh3 {[%clk 0:06:29.6]} 26. Nf4 {[%clk 0:03:21.7]}
26... Bg4 {[%clk 0:06:14.8]} 27. Qc1 {[%clk 0:02:35.2]} 27... g5 {[%clk
0:06:05]} 28. Nd3 {[%clk 0:02:35]} 28... Bh3 {[%clk 0:05:57.2]} 29. Bf4 {[%clk
0:02:01.3]} 29... gxf4 {[%clk 0:05:52.3]} 30. Nxf4 {[%clk 0:02:03.2]} 30... Bg4
{[%clk 0:05:36]} 31. Rf1 {[%clk 0:01:54.3]} 31... Qe5 {[%clk 0:05:11.8]} 32. Ng6
{[%clk 0:01:54.3]} 32... Rxf1+ {[%clk 0:05:08.1]} 33. Qxf1 {[%clk 0:01:56.2]}
33... Qg7 {[%clk 0:05:08.9]} 34. Nf4 {[%clk 0:01:41.8]} 34... Qxc3 {[%clk
0:05:05]} 35. Kh1 {[%clk 0:01:41.2]} 35... Qe3 {[%clk 0:04:12.5]} 36. h3 {[%clk
0:01:41.4]} 36... Qxe4+ {[%clk 0:04:09.1]} 37. Kh2 {[%clk 0:01:41.8]} 37... Bf5
{[%clk 0:03:54.7]} 38. Nh5 {[%clk 0:01:40]} 38... Qe5 {[%clk 0:03:46.4]} 39. e4
{[%clk 0:00:39.9]} 39... Qb2+ {[%clk 0:03:35.9]} 40. Kg1 {[%clk 0:00:36]} 40...
Qd4+ {[%clk 0:03:36.3]} 41. Kh2 {[%clk 0:00:31.6]} 41... Qd2+ {[%clk 0:03:36.9]}
42. Kg1 {[%clk 0:00:28.1]} 42... Qe3+ {[%clk 0:02:51.8]} 43. Kh2 {[%clk
0:00:28.2]} 43... Nd2 {[%clk 0:02:30.3]} 44. Qxf5 {[%clk 0:00:20.3]} 44... Nf3+
{[%clk 0:02:30.6]} 45. Kg2 {[%clk 0:00:15.3]} 45... Qe2+ {[%clk 0:02:31.6]} 46.
Kh1 {[%clk 0:00:14.6]} 46... Qf1# {[%clk 0:02:30.6]} 0-1

[Event "GrandPrix_30.05"]
[Site "Chess.com"]
[Date "2020.05.30"]
[Round "3"]
[White "hypert"]
[Black "Bosiocic"]
[Result "0-1"]
[WhiteElo "2197"]
[BlackElo "2697"]
[TimeControl "600+2"]
[EndTime "9:22:00 PDT"]
[Termination "Bosiocic won by checkmate"]

1. e4 {[%clk 0:10:01.9]} 1... d6 {[%clk 0:10:01.2]} 2. d4 {[%clk 0:10:02.1]}
2... Nf6 {[%clk 0:10:02.9]} 3. Nc3 {[%clk 0:10:03.1]} 3... e5 {[%clk 0:10:04.6]}
4. Nf3 {[%clk 0:10:03.4]} 4... Nbd7 {[%clk 0:10:05.7]} 5. Bc4 {[%clk 0:10:04.3]}
5... Be7 {[%clk 0:10:05.9]} 6. O-O {[%clk 0:10:05.3]} 6... O-O {[%clk
0:10:06.9]} 7. a4 {[%clk 0:10:02.2]} 7... a5 {[%clk 0:10:07.7]} 8. Qe2 {[%clk
0:09:45.8]} 8... c6 {[%clk 0:10:02.6]} 9. Rd1 {[%clk 0:09:36]} 9... exd4 {[%clk
0:09:59.4]} 10. Nxd4 {[%clk 0:09:32.6]} 10... Re8 {[%clk 0:09:54.6]} 11. Ba2
{[%clk 0:08:55.4]} 11... Bf8 {[%clk 0:09:45.2]} 12. Qf3 {[%clk 0:08:15.8]} 12...
Ne5 {[%clk 0:09:44.1]} 13. Qg3 {[%clk 0:08:15.2]} 13... Ng6 {[%clk 0:09:45.1]}
14. Bg5 {[%clk 0:07:59.6]} 14... h6 {[%clk 0:09:09.7]} 15. Bxh6 {[%clk
0:07:11.8]} 15... d5 {[%clk 0:08:21.7]} 16. Bg5 {[%clk 0:06:56.7]} 16... Bd6
{[%clk 0:08:17.6]} 17. Bxf6 {[%clk 0:06:26.4]} 17... Qxf6 {[%clk 0:08:12]} 18.
Qf3 {[%clk 0:06:26.7]} 18... Qe5 {[%clk 0:07:30.6]} 19. g3 {[%clk 0:06:21.5]}
19... Nh4 {[%clk 0:07:18.4]} 20. Qe3 {[%clk 0:04:18.7]} 20... Bg4 {[%clk
0:06:30.2]} 21. f3 {[%clk 0:03:25.7]} 21... c5 {[%clk 0:06:30.9]} 22. fxg4
{[%clk 0:01:32.9]} 22... cxd4 {[%clk 0:06:30.1]} 23. Qf2 {[%clk 0:01:32.5]}
23... dxc3 {[%clk 0:05:57.4]} 24. Bxd5 {[%clk 0:01:32]} 24... Qe7 {[%clk
0:05:30.3]} 25. Kh1 {[%clk 0:00:37.7]} 25... Ng6 {[%clk 0:05:02.9]} 26. bxc3
{[%clk 0:00:38.4]} 26... Ne5 {[%clk 0:05:02.8]} 27. Qe2 {[%clk 0:00:27.6]} 27...
Rab8 {[%clk 0:04:48.9]} 28. Rab1 {[%clk 0:00:28.1]} 28... b6 {[%clk 0:04:49.1]}
29. Rf1 {[%clk 0:00:23.7]} 29... g6 {[%clk 0:04:47.6]} 30. Rbd1 {[%clk
0:00:18.7]} 30... Bc5 {[%clk 0:04:45]} 31. Kg2 {[%clk 0:00:16.4]} 31... Kg7
{[%clk 0:04:42.5]} 32. h4 {[%clk 0:00:16.1]} 32... Rh8 {[%clk 0:03:47.3]} 33. g5
{[%clk 0:00:15.8]} 33... Rbf8 {[%clk 0:03:44.4]} 34. Rf6 {[%clk 0:00:15.8]}
34... Qc7 {[%clk 0:03:17.3]} 35. c4 {[%clk 0:00:15.2]} 35... Be7 {[%clk
0:03:11.7]} 36. Rf2 {[%clk 0:00:12.8]} 36... Qc8 {[%clk 0:03:06.2]} 37. Rdf1
{[%clk 0:00:11.3]} 37... Bxg5 {[%clk 0:02:54.7]} 38. Qe1 {[%clk 0:00:06.7]}
38... Be7 {[%clk 0:02:27.7]} 39. Qc3 {[%clk 0:00:07.7]} 39... f6 {[%clk
0:02:28.6]} 40. Qe3 {[%clk 0:00:04.7]} 40... Bc5 {[%clk 0:02:27.5]} 41. Qf4
{[%clk 0:00:05]} 41... Bxf2 {[%clk 0:02:27.8]} 42. Rxf2 {[%clk 0:00:06.9]} 42...
Qg4 {[%clk 0:02:27.6]} 43. Qe3 {[%clk 0:00:07.3]} 43... Rxh4 {[%clk 0:02:25.3]}
44. Qxb6 {[%clk 0:00:08.5]} 44... Qh3+ {[%clk 0:02:25.9]} 45. Kg1 {[%clk
0:00:10]} 45... Qh1# {[%clk 0:02:26.8]} 0-1